Workbook

Sheet Instructions
H2: [courtesy translation]
A5: Instructions – Application for Financing
A8: Mailing addresss and how to send application
A11: We recommend that you send the signed application by e-mail for faster processing. The application may also be sent by regular mail to the address indicated below.
A13: In any case, be sure to send the electronic file containing your application, including the appendices.
A16: Investissement Québec
A17: Development of Quebec intellectual property in the video game industry
A18: Direction du capital de risque et des fonds d'investissement
A19: 413, rue Saint-Jacques, bureau 500
A20: Montréal (Québec) H2Y 1N9
A23: By e-mail to the following address: jeuvideoqc@invest-quebec.com
A25: Processing time
A26: You have four years to apply for financing for video game projects, until June 10, 2019.
A28: Investissement Québec will send you an e-mail acknowledging receipt of this form and the requested information and documents. If your application is incomplete, Investissement Québec will let you know what information is missing.
A30: Please note that only complete applications will be processed.
A32: Following the analysis, Investissement Québec will contact you to tell you whether your application for financing has been accepted.
A34: A complete application includes:
A35: The duly completed and signed form, including all its schedules.

Sheet Application for investment
A3: Application for financing
A6: 1 - Company identification
A8: Company name
A11: NEQ (Quebec enterprise number) | E11: IQ business number (where applicable)
A14: Date of incorporation | E14: Website URL
A17: Mailing address
A22: Address of all establishments (if more than one)
A31: Authorized company representative/agent | F31: Representative/agent’s title
A34: Telephone # | F34: E-mail address
A38: 2 - Identification of video game
A40: Project title | F40: Project manager
A43: Technology director | F43: Artistic director
A46: Interactive / game designer - scriptwriter | F46: Contact person (full contact information)
A51: Scheduled start date | F51: Scheduled delivery date of official beta version
A54: Scheduled launch date
A57: Number of employees in the company
A60: Number of jobs created by the project
A63: Number of sub-contractors in Quebec
A67: 3 - Description of company
A69: Briefly describe the company’s history and operations: location, share capital, number of employees, industry, sub-sector, products offered, main achievements, past investments and strategic orientations. (Increase the space if necessary or attach a schedule).
A74: 4 - Description of proposed video game
A76: Provide a description of your project, including the following: name of game, game components, source of game content, target clientele, description and how they relate to program objectives; benefits (jobs, sales, investment, etc.). Also attach video and fixed image models of your project if requested. (Increase the space if necessary or attach a schedule).
A81: 5 - Market and competition
B83: 5.1 - Current market
B84: Description of marketing methods (publisher, platforms, etc.).
B87: 5.2 - Target market
B88: Description, including sectors, size, trends, growth, positioning, market share, main clients, business opportunities, competition, competitive advantages, weaknesses, risks, barriers to entry, etc.
B91: 5.3 - Marketing
B92: Explain the marketing strategy (various marketing models, including freemium).
A96: 6 - Project team
A98: Provide a list of the project team members, their employment history and their responsibilities in the project (increase the space if necessary, attach a schedule or attach a curriculum vitae).
A100: Name 1
A103: Employment history
A106: Responsibilities
A109: Name 2
A112: Employment history
A115: Responsibilities
A118: Name 3
A121: Employment history
A124: Responsibilities
A127: Name 4
A130: Employment history
A133: Responsibilities
A136: Name 5
A139: Employment history
A142: Responsibilities
A145: 7 - Shareholding and directors of the company
A147: Please fill out the following table.
A148: (*) If the shareholder is a company, indicate the name of each shareholder.
A149: (**) Indicate the investors with a convertible debt who could eventually hold shares in the company. Where applicable, indicate the % interest and voting rights after such a conversion.
A150: Shareholding
A151: Name of shareholders or corporate shareholder (*) (**) | E151: Citizenship | H151: % interest | I151: % voting rights
A158: Total | H158: 1 | I158: 1
A160: Directors
A161: Name of directors | E161: Citizenship | H161: % interest | I161: % voting rights
A168: Total | H168: 1 | I168: 1
A170: 8 - Business plan and distribution strategy
A172: Provide a description of the business plan and distribution strategy you have chosen or will choose for your proposed video game.
A176: 9 - Intellectual property
A178: Indicate the complete title chain by filling out Appendix A (include all documents relating to the rights with your application).
A180: 10 - Financial structure
A182: Provide a description of your financial structure by filling out Appendix B and attach the detailed agreements and contracts with each investor.
A184: 11 - Provisional budget
A186: Provide your provisional budget by filling out the corresponding Appendix C.
A188: 12 - Solemn declaration
A190: Complete the tab "Solemn Declaration" in Appendix D and have your signature sworn (by a notary or commissioner of oaths), then e-mail an electronic copy of it to jeuvideoqc@invest-quebec.com along with your application and send the original by regular mail to the address below.
A192: Development of Quebec intellectual property in the video game industry
A193: Investissement Québec
A194: Direction du capital de risque et des fonds d'investissement
A195: 413, rue Saint-Jacques, bureau 500
A196: Montréal (Québec) H2Y 1N9
A198: Please ensure you answer all the questions, include the requested documents and add schedules if there is not enough space for questions that require an extended response.
A200: List of Required Documents
A202: Company
B203: Organizational chart indicating the percentage interest of each of the Company’s shareholders.
B204: The Company’s minute books and a copy of all company registers, including:
C205: Copy of the Company’s incorporating document and any amendments;
C206: Declaration of registration and any annual and amending declarations;
C207: List of corporate names and trade names used by the Company (business names);
C208: Copy of the Company’s by-laws;
C209: Copy of the Company’s borrowing by-law and any other by-law;
C210: List of names and addresses of the Company’s directors and officers with their respective titles.
B211: Copy of certificates for all issued and outstanding shares.
B212: List of any options and other outstanding share purchase rights.
B213: Unanimous shareholder agreement, where applicable, as required in Schedule F of this form.
B214: Company background.
B215: Description of Company operations.
A216: Project
B217: Description of the project.
B218: Distribution and marketing strategy.
B219: Copy of all agreements entered into with publishers or distributors of the Project.
B220: Copy of all employment contracts for the Company’s employees who will take part in the Project.
B221: Playable prototype (vertical slice) in video format.
A222: Contracts
B223: Detailed agreements, contracts and addenda for financing plan.
B224: Copy of all deferred disbursement agreements entered into between the Company and a private lender.
A225: Intellectual property
B226: Detailed intellectual property agreements, i.e.:
C227: Copy of all licensing agreements for intellectual property belonging to third parties and granted to the Company.
C228: Copy of all licensing agreements for intellectual property belonging to the Company and granted to third parties.
C229: Copy of all agreements entered into by the Company with freelancers or subcontractors regarding any intellectual property used in the Project.
C230: Copy of any agreement entered into by the Company granting royalties to a third party.
C231: Copy of all agreements entered into by the Company with any third party assigning any intellectual property used in the Project.
A232: Financial documents
B233: Business plan.
B234: Financial structure.
B235: Annual financial statements of the Company and any affiliates for the past three fiscal years.
A237: To normalize any irregularity detected during the due diligence review of the intellectual property, all fees and disbursements incurred by IQ with its outside legal counsel shall be deducted from the first payment of the Contribution or any later payment if these irregularities arise during an update.
A239: 13 - Signature of authorized company representative or agent
A241: I, the undersigned, duly authorized representative or agent of the Company, declare that the information provided in this application, the appendices and all related documents is complete and accurate in every respect.
A245: Signature of company’s authorized representative or agent | H245: Date

Sheet Appendix A -IP
A5: Appendix A
A7: Appendix A forms an integral part of this application
A9: INTELLECTUAL PROPERTY
A11: For the purposes hereof, the expression “Intellectual Property” means the universality of the intellectual property rights of the Company, whether registered or unregistered, including, where applicable, the improvements thereto and modifications thereof, as well as the rights to all applications relating to the protection, in Canada and elsewhere, of any such intellectual property rights, including, without limiting the generality of the foregoing, all inventions, discoveries, recipes, methods and methodologies, formulas, plans, algorithms and processes, patents, pending or future patent applications, the processes or improvements of a product or procedure, know-how, techniques, trade secrets, confidential information of the Company, corporate or other business records, goodwill, customer lists, current and future trade-marks which are registered and for which registration is pending, publications, articles, scientific and economic studies, business plans, promotional materials, trade names, forms, graphic elements, source codes, data bases, software, software documentation, plates, masks, templates, registered or unregistered works the protection of which is governed by the Copyright Act (Canada), the registration of industrial designs, pending or future applications to register industrial designs, registered domain names, pending or future applications to register domain names, present or future rights to licences covering Intellectual Property rights from which the Company benefits, and the rights to licences covering the intellectual property granted by the Company to third parties.
A12: Without limiting the generality of the foregoing, the Intellectual Property relating to the Project consists of the following:
A13: Copyright
A14: In this section, describe all source codes, data bases, user manuals, content and graphic elements related to the Project, whether or not they are registered with an intellectual property office.
A24: Trade-marks
A25: In this section, describe all logos, slogans or other distinctive mark used in connection with the Project.
A33: Patents
A34: In this section, describe all patents registered or patent applications filed with an intellectual property office.
A46: Domain names
A47: In this section, list all domain names used in connection with the Project.
A59: Third party rights granted under licence
A60: In this section, describe all intellectual property belonging to third parties used in connection with the Project.
A68: Licences granted to third parties relating to the Intellectual Property
A69: In this section, describe the rights granted to third parties relating to any Intellectual Property used in connection with the Project.
A78: List of employees participating in the Project
A90: List of freelancers participating in the Project
A103: List of Intellectual Property from freelancers
A104: In this section, describe any Intellectual Property created or produced by freelancers.

Sheet Appendix B -Financial structure
A2: Appendix B
A3: Appendix B forms an integral part of this application.
A5: FINANCIAL STRUCTURE
B7: Public sources of financing (a) | G7: Investor’s head office and nationality (c) | H7: Amount of financing (d) | K7: Right to production income (%) | M7: Right to intellectual property (Yes/No and share (%), where applicable)
B8: 1 | C8: IQ/Development of intellectual property program | G8: Quebec | H8: Insert the amount | K8: Insert %
B9: 2
B10: 3
B11: 4
B12: 5
B13: 6
B14: 7
B15: 8
B16: Total public financing | H16: =SUM(H9:I15) -> 0
B18: Private sources of financing (b) | G18: Investor’s head office and nationality (c) | H18: Amount of financing (d) | K18: Right to production income (%) | M18: Right to intellectual property (Yes/No and share (%), where applicable)
B19: 9
B20: 10
B21: 11
B22: 12
B23: 13
B24: 14
B25: 15
B26: 16
B27: 17
B28: Total private financing | H28: =SUM(H19:I27) -> 0
B29: (a) | C29: Sources of public financing include, without limitation, any form of public financing (municipal, provincial and federal) received or receivable by the company in connection with its proposed video game. Please also provide a copy of all financing contracts for sources of public financing.
B30: (b) | C30: Include proof of receipt and/or proof of a formal, binding agreement that the funds will be disbursed upon the expiry of a fixed and unconditional term. Please also provide a copy of all financing contracts for sources of private financing.
B31: (c) | C31: Indicate the country (or province) in which the private /public investor's head office, decision-making centre and principal place of business is located.
B32: (d) | C32: Please ensure that the total amount of public and private financing is the same as the total project cost as indicated under the “Provisional budget" tab.

Sheet Appendix C -Prov.ProdCostBudget
A5: Appendix C
A6: Appendix C forms an integral part of this application.
A8: PROVISIONAL PRODUCTION COST BUDGET
A10: Expenditures | C10: Detailed description | G10: Cost allocation | J10: Cost origin | L10: Total
G11: Internal | H11: Related | I11: External | J11: Quebec | K11: Outside Quebec
A12: Ex: Producer | C12: Purchase of right to story | I12: 40000 | J12: 40000 | L12: =SUM(G12:I12) -> 40000
A13: Ex: Audio/video labour | C13: Sound effects (sub-contractor’s fee) | I13: 10000 | K13: 10000 | L13: =SUM(G13:I13) -> 10000
A14: Ex: Production labour | C14: Interface and programming (salaries) | G14: 250000 | J14: 250000 | L14: 250000
A15: Ex: Materials and infrastructure | C15: Purchase of software and computer systems | I15: 10000 | K15: 10000 | L15: 10000
A16: Ex: Salary of internal employees | C16: Salary of internal employees assigned to the project | G16: 800000 | J16: 800000 | L16: 800000
L17: 0
L18: 0
L19: 0
L20: 0
L21: 0
E22: Sub-total | G22: =SUM(G12:G21) -> 1050000 | H22: 0 | I22: 60000 | J22: 1090000 | K22: 20000 | L22: 1110000
A24: Marketing | C24: Detailed description | G24: Internal | H24: Related | I24: External | J24: N/A (a) | L24: Total
A25: Ex: Marketing, promotion | C25: Purchase of advertising on websites and social networks | I25: 50000 | L25: 50000
A26: Ex: Campaign development | C26: Programming and artwork for posters | G26: 25000 | L26: 25000
L27: 0
E28: Sub-total | G28: =SUM(G25:G27) -> 25000 | H28: =SUM(H25:H27) -> 0 | I28: =SUM(I25:I27) -> 50000 | L28: =SUM(L25:L27) -> 75000
G31: Internal | H31: Related | I31: External | J31: Quebec | K31: Outside Quebec | L31: Total
D32: TOTAL PRODUCTION COSTS | G32: =SUM(G22+G28) -> 1075000 | H32: =SUM(H22+H28) -> 0 | I32: =SUM(I22+I28) -> 110000 | J32: =J22 -> 1090000 | K32: =K22 -> 20000 | L32: =SUM(L22+L28) -> 1185000
G33: % production costs in Quebec (b) | J33: =1-(K32/J32) -> 0.9816513761
A35: Budget prepared by:
A36: Date : | F36: (a) Marketing and/or distribution expenses to promote the project should not be included in calculating expenses incurred in Quebec.
A37: Signature * :
A38: * By signing this document, I certify that the internal and related expenses correspond to the actual cost or exchange value of the goods or services listed. No profit has been added to the anticipated expenses. | F38: (b) The majority of the project expenses must be directly or indirectly incurred in Quebec.

Sheet Appendix D - Solemn declaration
A5: Appendix D
A6: Appendix D forms an integral part of this application
A9: SOLEMN DECLARATION
A14: Re : | B14: Contribution by Investissement Québec to
B16: Company’s name:
A21: I, the undersigned, ________________________________ (name and profession), residing and domiciled at ______________________________, judicial district of ________________, solemnly declare as follows:
A24: I am the President of _______________________ (company’s name), duly authorized by the Company;
A26: There is no right, agreement or option of any nature whatsoever which could hinder, modify or change the control of the Company in any manner;
A28: The Company is entitled to use the intellectual property necessary to create the video game;
A30: The Company is unaware of any opposition regarding the said intellectual property or any action for infringement against it in Canada or elsewhere with regard thereto;
A33: The Company authorizes Investissement Québec to exchange with the relevant government departments and bodies and financial institutions the information or documents necessary to analyze its application for financing, including this declaration; without limiting the generality of the foregoing, the Company authorizes any financial institution with which it does business to exchange with Investissement Québec any information and document in its possession which is necessary to analyze its application for financing.
A35: AND I HAVE SIGNED
A40: Signature of President of the Company
A44: Solemnly declared before me
A46: in ________________________ this _________________________
A52: Commissioner of oaths or notary

Sheet Appendix E - Project schedule
A6: Appendix E
A7: Appendix E forms an integral part of this application
A10: PROJECT SCHEDULE
A12: Deliverable product | C12: Description | F12: Scheduled date | G12: Actual date | H12: Explanation if difference between scheduled date and actual date
A29: N.B. All future disbursement commitments by private investors depending on the achievement of a deliverable product must be described in this appendix. See footnote (b) of Appendix B about future disbursements upon the expiry of a fixed and unconditional term.

Sheet AppendixF-Officer's certificate
A5: Appendix F
A6: Appendix F forms an integral part of this application
A9: OFFICER’S CERTIFICATE
A12: TO : | B12: INVESTISSEMENT QUÉBEC
A14: I, the undersigned , _______________, declare and certify as follows, in my capacity as _________________ (title) of the Company and without personal liability, which declarations are accurate and complete as of the date hereof:
A16: 1. I am the _________________ (title) of the Company and, as such, I am personally aware of the affairs of the Company and the facts attested to in this signed declaration and I am authorized to make these declarations.
A18: 2. A true copy of the constituting documents of the Company and any amendment thereof (the “Constituting Documents”) is attached to this declaration as Schedule 1 and the said documents are still in effect as of the date hereof and have not been modified or amended and no steps are being taken to modify or amend them.
A20: 3. A certified true copy of the Company’s by-laws (the “By-laws”) is attached to this declaration as Schedule 2 as of the date hereof and they have not been modified or amended and no steps are being taken to modify or amend them.
A22: 4. Subject to the unanimous shareholder agreement communicated as Schedule 1 hereto, there is no unanimous shareholder agreement or sole shareholder’s declaration in effect at the Company. Moreover, no modification or amendment has been made to the unanimous shareholder agreement attached as Schedule 3 since it was signed and no steps are being taken to modify or amend it.
A24: 5. The Company is in good standing under An Act respecting the legal publicity of enterprises.
A26: 6. To the best of my knowledge, no proceeding exists or is being threatened which could render the Company insolvent, wind it up, cause its bankruptcy or liquidation or cancel or revoke its Constituting Documents. No resolution has been adopted by the Company and no request has been made by or on behalf of the Company which would have the effect of liquidating, winding up or otherwise ending the existence of the Company or causing the Company to be subject to the Bankruptcy and Insolvency Act (RSC 1985, c. C-36) or any similar legislation.
A28: 7. The domicile, principal place of business and decision-making centre of the Company is situated at ________________________________.
A30: 8. I acknowledge, in my capacity as _________________ (title) of the Company, that Investissement Québec will rely on the statements and representations made in this declaration for the purpose of signing the Contract.
A34: And I have signed in | F34: this
A39: Signature
A43: Name and title of representative

Sheet AppendixG-Calculation Royalties
B2: Appendix G
B4: Calculation of Royalties
B6: Appendix G forms an integral part of this application
B8: Please do not write in the shaded cells.
A9: NAME OF GAME :
A11: REVENUE | B11: Year 1 | C11: Year 2 | D11: Year 3 | E11: Year 4 | F11: Year 5 | G11: Year 6 | H11: Year 7
A12: Production revenue | C12: 0 | D12: 0 | E12: 0 | F12: 0 | G12: 0 | H12: 0
A13: TOTAL REVENUE | B13: =B12 -> 0 | C13: 0 | D13: 0 | E13: 0 | F13: 0 | G13: 0 | H13: 0
A15: EXPENSES
A16: Eligible expenses - Marketing - Commercialization | C16: 0 | D16: 0 | E16: 0 | F16: 0 | G16: 0 | H16: 0
A17: Other expenses considered reasonable by IQ | C17: 0 | D17: 0 | E17: 0 | F17: 0 | G17: 0 | H17: 0
A18: TOTAL EXPENSES | B18: =B16+B17 -> 0 | C18: =C16+C17 -> 0 | D18: 0 | E18: 0 | F18: 0 | G18: 0 | H18: 0
A20: Preemptive priority (Recoup) | C20: 0 | D20: 0 | E20: 0 | F20: 0 | G20: 0 | H20: 0
A22: SHAREABLE REVENUE | B22: =B13-B18-B20 -> 0 | C22: =C13-C18-C20 -> 0 | D22: 0 | E22: 0 | F22: 0 | G22: 0 | H22: 0
A24: PERCENTAGE
A25: Developer % | B25: % | C25: % | D25: % | E25: % | F25: % | G25: % | H25: %
A26: Publisher % | B26: % | C26: % | D26: % | E26: % | F26: % | G26: % | H26: %
A27: Investor 1 % | B27: % | C27: % | D27: % | E27: % | F27: % | G27: % | H27: %
A28: Investor 2 % | B28: % | C28: % | D28: % | E28: % | F28: % | G28: % | H28: %
A29: Investor 3 % | B29: % | C29: % | D29: % | E29: % | F29: % | G29: % | H29: %
A30: Investissement Québec % | B30: % | C30: % | D30: % | E30: % | F30: % | G30: % | H30: %
A32: TOTAL TO BE PAID
A33: Developer | B33: =$B$22*B25 ->  | C33: 0 | D33: 0 | E33: 0 | F33: 0 | G33: 0 | H33: 0
A34: Publisher | C34: 0 | D34: 0 | E34: 0 | F34: 0 | G34: 0 | H34: 0
A35: Investor 1 | C35: 0 | D35: 0 | E35: 0 | F35: 0 | G35: 0 | H35: 0
A36: Investor 2 | C36: 0 | D36: 0 | E36: 0 | F36: 0 | G36: 0 | H36: 0
A37: Investor 3 | C37: 0 | D37: 0 | E37: 0 | F37: 0 | G37: 0 | H37: 0
A38: Investissement Québec | C38: 0 | D38: 0 | E38: 0 | F38: 0 | G38: 0 | H38: 0
